bitfinex/quotes_ETHUSD_20220101
["timestamp","ask_amount","ask_price","bid_price","bid_amount"]
[1641036057807,3.7000882,3707.5,3707.3,0.01705271]
[1641036058408,1.0000882,3707.5,3707.3,0.01705271]
[1641036059009,1.0000882,3707.5,3707.1,0.01818956]
[1641036063149,2.70607592,3708.1,3707.1,0.01818956]
[1641036063150,0.06415739,3708.1,3707.1,0.01818956]
[1641036064354,1.07556991,3707.6,3707.1,0.01818956]
[1641036066196,1.07556991,3707.6,3707.2,0.67431]
[1641036066597,1.07556991,3707.6,3707.3,0.01705271]
[1641036068743,0.06415739,3708.1,3707.3,0.01705271]
[1641036068949,0.06415739,3708.1,3707.3,2.73085021]
[1641036069142,0.06415739,3708.1,3707.7,0.01295481]
[1641036069342,0.16004997,3709.2,3707.7,0.01295481]
[1641036069543,0.16004997,3709.2,3707.8,0.01421059]
[1641036070148,1.26496208,3708.8,3708.3,0.6741]
[1641036070347,1.26496208,3708.8,3708.3,0.9741]
[1641036070549,1.26496208,3708.8,3708.4,0.01080005]
[1641036074105,1.26496208,3708.8,3708.2,0.0119369]
[1641036075612,1.26496208,3708.8,3708.3,0.67412]
[1641036076009,1.26496208,3708.8,3708.4,0.01080005]
[1641036077643,3.2422,3709.1,3708.4,0.68489005]
[1641036077844,0.10164997,3709.2,3708.4,0.68489005]
[1641036078053,0.10164997,3709.2,3708.5,0.01023163]
[1641036078448,0.05164997,3709.2,3708.5,0.01023163]
[1641036080508,1.3883002,3708.8,3708.5,0.01023163]
[1641036081606,1.3883002,3708.8,3708.6,0.67405]
[1641036082007,0.05164997,3709.2,3708.7,0.00909478]
[1641036083306,1.19012771,3709.1,3708.7,0.00909478]
[1641036083744,1.19102336,3709.1,3708.7,0.00909478]
[1641036087251,1.19102336,3709.1,3708.4,0.01080005]
[1641036087505,1.19102336,3709.1,3708.0,4.11307374]
[1641036087704,1.19102336,3709.1,3708.3,0.01136847]
[1641036087904,1.19102336,3709.1,3708.1,0.01250532]
[1641036088306,1.29050714,3708.5,3708.1,0.68664532]
[1641036088510,1.29050714,3708.5,3708.1,0.67414]
[1641036088714,1.29050714,3708.5,3708.2,0.0119369]
[1641036089812,1.29050714,3708.5,3708.2,0.6860569]
[1641036090012,1.29050714,3708.5,3708.2,1.2860569]
[1641036090214,1.29050714,3708.5,3708.3,0.01136847]
[1641036090413,0.00089565,3709.1,3708.3,0.01136847]
[1641036092552,1.23466489,3708.7,3708.3,0.01136847]
[1641036094257,0.00084114,3708.6,3708.3,0.01136847]
[1641036094456,0.00084114,3708.6,3708.1,0.01250532]
[1641036095729,0.00084114,3708.6,3708.1,0.68664532]
[1641036096125,0.00084114,3708.6,3708.2,0.0119369]
[1641036096530,0.00084114,3708.6,3708.1,0.01250532]
[1641036097324,0.00084114,3708.6,3708.0,0.01307374]
[1641036097525,0.00084114,3708.6,3708.1,0.01250532]
[1641036097726,0.00084114,3708.6,3708.3,0.67411]
[1641036098128,0.00084114,3708.6,3708.4,0.01080005]
[1641036103401,0.00084114,3708.6,3708.4,0.68490005]
[1641036103802,0.00084114,3708.6,3708.5,3.51023163]
[1641036104002,0.00084114,3708.6,3708.5,0.01023163]
[1641036104201,0.00084114,3708.6,3708.5,1.01023163]
[1641036104603,0.00084114,3708.6,3708.5,0.01023163]
[1641036104903,0.6741,3708.4,3708.0,5.1718]
[1641036105110,0.6,3708.3,3707.4,1.88430632]
[1641036105312,4.7,3708.2,3707.4,1.88430632]
[1641036105509,2.7137975,3708.1,3707.4,1.88430632]
[1641036105710,3.6322975,3708.1,3707.5,0.00341054]
[1641036105908,0.67443,3707.8,3706.8,8.93932507]
[1641036106152,15.76,3707.7,3706.8,8.93932507]
[1641036106353,15.76,3707.7,3707.3,1.67687666]
[1641036106757,15.76,3707.5,3706.9,4.5317027]
[1641036106958,1.23695554,3707.4,3706.9,0.00341054]
[1641036107158,0.67463,3707.2,3707.0,0.00284212]
[1641036107356,0.67463,3707.2,3706.2,6.18]
[1641036107357,0.67463,3707.2,3706.6,0.00511581]
[1641036107660,1.31915634,3706.8,3706.3,0.00682108]
[1641036109160,3.05741516,3706.7,3706.3,0.00682108]
[1641036109360,0.67466,3706.6,3706.3,0.00682108]
[1641036109563,2.82390394,3706.5,3706.3,0.00682108]
[1641036110006,3.05741516,3706.7,3706.3,0.00682108]
[1641036110705,3.05741516,3706.7,3705.6,0.06377207]
[1641036111105,3.05741516,3706.7,3705.7,0.01023162]
[1641036111307,3.05741516,3706.7,3705.8,0.67453]
[1641036111504,3.05741516,3706.7,3705.8,0.97453]
[1641036111704,1.22732685,3706.1,3705.9,0.00909478]
[1641036113307,1.22732685,3706.1,3705.9,0.13391291]
[1641036113751,1.22732685,3706.1,3706.0,0.00852635]
[1641036115059,4.29329482,3706.1,3706.0,0.00852635]
[1641036115957,1.22732685,3706.1,3706.0,0.00852635]
[1641036117261,4.29335099,3706.1,3706.0,0.00852635]
[1641036118304,4.7,3706.0,3705.9,4.448e-05]
[1641036118505,7.7754297,3706.0,3705.1,0.4155029]
[1641036118705,0.67486,3705.7,3705.1,0.4155029]
[1641036118906,2.84379814,3705.6,3705.5,0.00284212]
[1641036119104,0.67486,3705.7,3705.5,0.00284212]
[1641036119712,0.67479,3705.9,3705.5,0.00284212]
[1641036119913,2.78455878,3705.8,3705.5,0.00284212]
[1641036120111,3.74081414,3705.9,3705.5,0.00284212]
[1641036120310,2.81810932,3705.8,3705.5,0.00284212]
[1641036120611,3.06602414,3705.7,3704.7,0.00738951]
[1641036120813,1.38421461,3704.8,3704.7,0.00738951]
[1641036121765,5.78180557,3705.7,3704.7,1.30738951]
[1641036121967,5.82392946,3705.7,3704.7,1.60738951]
[1641036122168,5.79617066,3705.7,3704.8,0.00682109]
[1641036122369,6.9213,3705.8,3704.8,0.00682109]
[1641036122572,3.8168,3705.8,3704.8,0.00682109]
[1641036122970,5.86719897,3705.7,3704.8,0.00682109]
[1641036123171,1.09447803,3705.0,3704.8,0.00682109]
[1641036123570,1.09447803,3705.0,3704.7,0.00738951]
[1641036129151,3.79447803,3705.0,3704.7,0.00738951]
[1641036131160,3.06718838,3704.9,3704.7,0.00738951]
[1641036131559,3.74213838,3704.9,3704.7,0.00738951]
[1641036132500,3.05,3704.8,3704.7,0.00738951]
[1641036132704,5.7576812,3704.8,3704.7,0.00738951]
[1641036133300,2.7076812,3704.8,3704.7,0.00738951]
[1641036133500,5.15679466,3704.8,3704.7,0.00738951]
[1641036133800,3.3822379,3704.9,3704.7,0.00738951]
[1641036134003,0.67495,3704.9,3704.7,0.00738951]
[1641036134207,15.76,3704.8,3704.7,0.00738951]
[1641036135004,15.76,3704.8,3704.6,6.18]
[1641036135005,15.76,3704.8,3704.6,5.77708951]
[1641036135209,7.8912,3704.6,3703.6,0.06377489]
[1641036135410,0.67521,3704.1,3703.6,0.06377489]
[1641036135606,0.67521,3704.1,3703.7,0.00568423]
[1641036136261,2.83492407,3704.0,3703.7,0.00568423]
[1641036136463,1.01641328,3703.9,3703.7,0.00568423]
[1641036136660,0.67517,3703.8,3703.7,0.00568423]
[1641036137261,3.42495651,3703.8,3703.7,0.00568423]
[1641036137660,3.42495651,3703.8,3703.7,6.18]
[1641036137865,3.43242722,3703.8,3703.7,6.18]
[1641036138060,0.67517,3703.8,3703.7,6.18]
[1641036138261,3.42544223,3703.8,3703.7,6.18]
[1641036138462,0.67517,3703.8,3703.7,6.18]
[1641036140317,3.37517,3703.8,3703.3,0.06377689]
[1641036140716,3.37517,3703.8,3703.4,0.0073895]
[1641036141920,6.16478661,3703.8,3703.4,0.0073895]
[1641036142120,6.12590131,3703.8,3703.4,0.0073895]
[1641036142320,3.37517,3703.8,3703.4,0.0073895]
[1641036143220,6.11432539,3703.8,3703.4,0.0073895]
[1641036143421,3.37517,3703.8,3703.4,0.0073895]
[1641036144049,6.09766596,3703.8,3703.4,0.0073895]
[1641036144249,3.37517,3703.8,3703.4,0.0073895]
[1641036144857,6.12427322,3703.8,3703.4,0.0073895]
[1641036145054,3.37517,3703.8,3703.4,0.0073895]
[1641036148912,6.12148977,3703.8,3703.4,0.0073895]
[1641036149111,3.06817585,3703.7,3703.4,0.0073895]
[1641036151751,3.06817585,3703.7,3702.5,0.01250531]
[1641036151953,1.27547828,3703.3,3702.5,0.01250531]
[1641036152157,1.27547828,3703.3,3702.5,4.56319913]
[1641036152557,3.06817585,3703.7,3702.6,1.61193689]
[1641036152859,2.7,3703.8,3702.7,0.0242262]
[1641036153258,2.7,3703.8,3703.0,4.55069382]
[1641036153656,2.7,3703.8,3703.2,1.09304709]
[1641036154056,2.7,3703.8,3703.3,0.00795793]
[1641036155407,2.7,3703.8,3703.3,0.68290793]
[1641036155807,2.7,3703.8,3703.4,0.0073895]
[1641036157207,2.7,3703.8,3703.4,1.3242004]
[1641036157608,2.7,3703.8,3703.5,0.00682108]
[1641036158010,2.7,3703.8,3703.6,0.67494]
[1641036158410,2.7,3703.8,3703.6,0.97494]
[1641036159052,2.7,3703.8,3703.7,4.75179523]
[1641036159450,2.7,3703.8,3703.7,1.35179523]
[1641036159650,2.7,3703.8,3703.7,0.35179523]
[1641036159854,2.29243143,3703.8,3703.7,2.60179523]
[1641036160056,2.29243143,3703.8,3703.7,3.60179523]
[1641036160956,2.29243143,3703.8,3703.7,1.26134381]
[1641036161162,2.29243143,3703.8,3703.7,0.26134381]
[1641036161555,2.29243143,3703.8,3703.7,0.05179523]
[1641036164316,3.888e-05,3703.8,3703.7,4.75179523]
[1641036164513,0.06300166,3704.5,3704.1,0.6747]
[1641036164716,7.4118,3704.6,3704.4,0.01288324]
[1641036165011,2.0717,3704.6,3704.5,1.90113685]
[1641036165212,1.37913278,3706.2,3704.5,1.90113685]
[1641036165412,1.01229662,3706.0,3705.1,1.06084598]
[1641036165612,0.00284212,3705.2,3704.9,0.97458]
[1641036166014,0.0022737,3705.1,3704.9,1.49932997]
[1641036166465,0.00170527,3705.0,3704.9,1.49932997]
[1641036166767,0.00170527,3705.0,3704.9,3.96473364]
[1641036166965,0.00170527,3705.0,3704.9,4.63929364]
[1641036167162,0.00170527,3705.0,3704.9,5.63929364]
[1641036167764,0.00170527,3705.0,3704.9,3.84849997]
[1641036167972,0.00170527,3705.0,3704.9,3.17391997]
[1641036168370,0.00170527,3705.0,3704.9,1.57391997]
[1641036168974,0.00170527,3705.0,3704.9,0.22474997]
[1641036170019,2.70170527,3705.0,3704.9,0.22474997]
[1641036178211,2.70170527,3705.0,3704.9,0.89931997]
[1641036178611,2.70170527,3705.0,3704.9,2.31143583]
[1641036179012,2.70170527,3705.0,3704.9,3.31143583]
[1641036182265,2.06119643,3705.0,3704.9,6.21143583]
[1641036182464,2.06119643,3705.0,3704.9,3.31143583]
[1641036183165,2.06119643,3705.0,3704.9,3.19442598]
[1641036184369,2.06119643,3705.0,3704.9,1.78231012]
[1641036184565,2.06119643,3705.0,3704.9,0.78231012]
[1641036184766,2.06119643,3705.0,3704.9,1.78231012]
[1641036185217,2.06119643,3705.0,3704.9,0.78231012]
[1641036185617,2.06119643,3705.0,3704.9,1.78231012]
[1641036185920,2.06119643,3705.0,3704.9,0.78231012]
[1641036186119,2.06119643,3705.0,3704.9,1.78231012]
[1641036186321,2.06119643,3705.0,3704.9,0.78231012]
[1641036186518,2.06119643,3705.0,3704.9,1.78231012]
[1641036186719,2.06119643,3705.0,3704.9,0.78231012]
[1641036186923,2.06119643,3705.0,3704.5,4.55183067]
[1641036186924,2.06119643,3705.0,3704.7,0.67474]
[1641036187121,2.06119643,3705.0,3704.5,0.00113685]
[1641036187320,2.06119643,3705.0,3704.8,0.00113685]
[1641036187523,4.77168211,3705.0,3704.5,0.00284212]
[1641036187822,2.06119643,3705.0,3704.5,0.00284212]
[1641036188669,2.06119643,3705.0,3703.9,0.68114266]
[1641036188876,2.06119643,3705.0,3704.0,0.00568423]
[1641036189474,2.06119643,3705.0,3704.3,6.85482]
[1641036189771,2.06119643,3705.0,3704.4,1.30341054]
[1641036189971,2.06119643,3705.0,3704.4,1.60341054]
[1641036190172,2.06119643,3705.0,3704.5,0.00284212]
[1641036196657,2.06119643,3705.0,3704.6,0.67477]
[1641036197059,2.06119643,3705.0,3704.7,0.00170527]
[1641036197657,2.06119643,3705.0,3704.6,0.00227369]
[1641036197856,2.06119643,3705.0,3704.7,0.67475]
[1641036198057,2.06119643,3705.0,3704.7,0.97475]
[1641036198257,2.06119643,3705.0,3704.8,0.00113685]
[1641036198457,2.06119643,3705.0,3704.8,1.35041685]
[1641036198656,2.06119643,3705.0,3704.8,2.35041685]
[1641036199761,2.06119643,3705.0,3704.9,4.30332996]
[1641036200016,2.06119643,3705.0,3704.9,2.67792996]
[1641036200217,2.06119643,3705.0,3704.9,2.2746]
[1641036202118,2.01119643,3705.0,3704.9,2.2746]
[1641036208417,2.01119643,3705.0,3704.9,1.2746]
[1641036209518,0.63376893,3705.0,3704.9,5.9746]
[1641036209721,0.63376893,3705.0,3704.9,7.6379]
[1641036209919,0.63376893,3705.0,3704.9,2.9379]
[1641036210127,0.63376893,3705.0,3704.9,1.9379]
[1641036210325,0.63376893,3705.0,3704.9,2.9379]
[1641036210924,0.51059463,3705.0,3704.9,6.5879]
[1641036211153,0.51059463,3705.0,3704.9,2.9379]
[1641036217627,0.06251219,3705.4,3705.0,4.6605]
[1641036217829,7.4322,3707.2,3705.3,0.01209952]
[1641036218032,7.4322,3707.2,3706.1,1.34874]
[1641036218228,7.4322,3707.2,3706.6,0.67432]
[1641036218427,1.37913278,3707.3,3706.6,0.67432]
[1641036218658,1.37913278,3707.3,3706.8,1.33444864]
[1641036218860,0.01250532,3707.2,3706.6,0.3]
[1641036219057,0.01250532,3707.2,3706.9,0.67424]
[1641036219260,0.01193689,3707.1,3706.9,1.34845]
[1641036219458,0.01193689,3707.1,3707.0,0.3]
[1641036219658,1.37913278,3707.3,3707.0,0.3]
[1641036219857,1.37913278,3707.3,3707.1,0.67421]
[1641036220062,0.01250532,3707.2,3707.1,0.67421]
[1641036221464,0.01250532,3707.2,3707.0,1.3]
[1641036221662,0.01250532,3707.2,3707.0,0.3]
[1641036221863,0.01193689,3707.1,3707.0,0.3]
[1641036222062,0.01193689,3707.1,3706.9,0.97437]
[1641036222262,1.20507346,3707.0,3706.9,0.97437]
[1641036222505,1.21644193,3707.0,3706.7,1.34868]
[1641036222708,1.21644193,3707.0,3706.3,1.69661749]
[1641036222906,0.01080005,3706.9,3706.3,1.34879]
[1641036223308,0.01023162,3706.8,3706.3,1.34879]
[1641036223706,0.0096632,3706.7,3706.3,1.34879]
[1641036224107,0.00909478,3706.6,3706.3,1.34879]
[1641036224509,0.00852635,3706.5,3706.3,1.34879]
[1641036224909,0.00795793,3706.4,3706.3,1.34879]
[1641036226206,0.00795793,3706.4,3706.3,2.34879]
[1641036227096,0.00795793,3706.4,3706.3,1.34879]
[1641036227301,0.00795793,3706.4,3706.3,2.34879]
[1641036227701,0.00795793,3706.4,3706.3,1.34879]
[1641036227903,0.00795793,3706.4,3706.3,1.64879]
[1641036230112,0.00795793,3706.4,3706.3,1.34879]
[1641036231318,2.70795793,3706.4,3706.3,1.34879]
[1641036244171,2.70795793,3706.4,3706.3,2.34879]
[1641036244370,2.70795793,3706.4,3706.3,1.34879]
[1641036244570,2.70795793,3706.4,3706.3,2.34879]
[1641036244768,2.70795793,3706.4,3706.3,1.34879]
[1641036245016,2.70795793,3706.4,3706.3,2.34879]
[1641036245615,2.70795793,3706.4,3706.3,3.46418371]
[1641036254610,2.70795793,3706.4,3706.3,2.34879]
[1641036255213,2.7,3706.4,3706.3,2.34879]
[1641036255811,2.7,3706.4,3706.3,3.68114084]
[1641036256013,2.7,3706.4,3706.3,3.73289974]
[1641036256866,2.7,3706.4,3706.3,6.61303561]
[1641036257966,2.7,3706.4,3706.3,4.03289974]
[1641036258164,1.70112402,3706.4,3706.3,4.03289974]
[1641036260213,1.70112402,3706.4,3706.3,6.66667393]
[1641036261414,1.70112402,3706.4,3706.3,6.61452338]
[1641036262417,1.70112402,3706.4,3706.3,4.03289974]
[1641036262614,1.70112402,3706.4,3706.3,6.6151368]
[1641036263018,0.0573,3707.6,3706.4,4.35]
[1641036263215,0.0573,3707.6,3707.0,0.67428]
[1641036263416,0.01421059,3707.5,3707.1,0.05174773]
[1641036263858,0.01364216,3707.4,3707.1,0.05174773]
[1641036264160,0.01307374,3707.3,3707.2,1.34856]
[1641036264357,1.30660544,3708.0,3707.6,0.6743]
[1641036264757,0.00341054,3707.9,3707.6,0.6743]
[1641036265164,0.00284212,3707.8,3707.6,0.6743]
[1641036265365,3.06813451,3707.8,3707.6,0.6743]
[1641036265567,0.0022737,3707.7,3707.6,0.6743]
[1641036272064,2.7022737,3707.7,3707.6,0.6743]
[1641036273467,2.7022737,3707.7,3707.6,0.9743]
[1641036275321,2.7022737,3707.7,3707.6,3.50353023]
[1641036275523,2.7022737,3707.7,3707.6,4.50353023]
[1641036276221,2.7022737,3707.7,3707.6,1.9743]
[1641036278424,2.7022737,3707.7,3707.6,1.6743]
[1641036278661,2.7022737,3707.7,3707.6,0.6743]
[1641036281570,2.7022737,3707.7,3707.6,1.6743]
[1641036281868,2.7022737,3707.7,3707.6,0.6743]
[1641036282068,2.7022737,3707.7,3707.6,1.6743]
[1641036282270,2.7022737,3707.7,3707.6,0.6743]
[1641036282526,2.7022737,3707.7,3707.6,1.6743]
[1641036282726,2.7022737,3707.7,3707.6,0.6743]
[1641036282928,2.7022737,3707.7,3707.6,1.6743]
[1641036283330,2.7022737,3707.7,3707.6,1.9743]
[1641036295470,2.7,3707.7,3707.6,1.9743]
[1641036296273,2.7,3707.7,3707.6,0.6743]
[1641036296473,2.7,3707.7,3707.4,0.71296986]
[1641036296874,0.00170527,3707.6,3707.4,0.71296986]
[1641036297081,0.00170527,3707.6,3707.4,0.03866986]
[1641036297272,0.00113685,3707.5,3707.4,0.03866986]
[1641036300933,0.00113685,3707.5,3707.4,1.42246123]
[1641036301173,0.00113685,3707.5,3707.4,0.03866986]
[1641036301398,0.00113685,3707.5,3707.4,1.03866986]
[1641036301581,0.00113685,3707.5,3707.4,0.03866986]
[1641036302478,0.00113685,3707.5,3707.4,1.45732078]
[1641036302677,0.00113685,3707.5,3707.4,2.45732078]
[1641036309270,0.00113685,3707.5,3707.4,2.46101733]
[1641036316367,0.00113685,3707.5,3707.4,1.04236641]
[1641036316571,0.00113685,3707.5,3707.4,0.04236641]
[1641036317981,0.00113685,3707.5,3706.7,0.85379589]
[1641036317982,0.95763359,3707.3,3706.7,0.85379589]
[1641036318178,0.95763359,3707.3,3706.7,0.06219884]
[1641036318375,0.95763359,3707.3,3706.8,0.00284212]
[1641036318777,3.06588403,3707.2,3706.8,0.00284212]
[1641036318979,0.67458,3707.1,3706.8,0.00284212]
[1641036319577,0.67458,3707.1,3706.0,0.0073895]
[1641036320228,4.3485808,3707.2,3706.0,0.0073895]
[1641036320229,3.06588403,3707.0,3706.0,0.0073895]
[1641036320429,3.06588403,3707.0,3706.0,0.6819295]
[1641036320629,3.06588403,3707.0,3706.0,0.67454]
[1641036320930,3.06588403,3707.1,3706.1,0.00682108]
[1641036321331,3.06588403,3706.9,3706.1,0.00682108]
[1641036321930,1.28269677,3707.2,3706.1,0.00682108]
[1641036321931,3.06588403,3707.1,3706.1,0.00682108]
[1641036322732,3.74045403,3707.1,3706.1,0.00682108]
[1641036323131,3.74045403,3707.1,3705.9,0.00795793]
[1641036323334,6.44045403,3707.1,3705.8,0.00852635]
[1641036323665,3.06588403,3707.0,3705.8,0.00852635]
[1641036324670,3.06588403,3707.0,3705.9,0.67455]
[1641036325071,3.06588403,3707.0,3706.0,0.0073895]
[1641036327073,3.06588403,3707.0,3706.0,0.6819295]
[1641036327275,2.7,3707.1,3706.0,0.67454]
[1641036327530,2.7,3707.1,3706.1,0.00682108]
[1641036330535,3.37457,3707.1,3706.1,0.00682108]
[1641036334572,3.37457,3707.1,3705.8,0.67458]
[1641036334573,3.37457,3707.1,3705.9,0.00795793]
[1641036335619,3.37457,3707.1,3705.9,0.68251793]
[1641036336020,3.37457,3707.1,3706.0,0.0073895]
[1641036345931,2.7,3707.1,3706.0,0.6819395]
[1641036346175,2.7,3707.1,3706.1,2.53342994]
[1641036346375,2.7,3707.1,3706.1,2.84025102]
[1641036346578,2.7,3707.1,3706.2,1.00625266]
[1641036346778,2.7,3707.1,3706.3,2.50470463]
[1641036346982,2.7,3707.1,3706.6,1.34875]
[1641036347182,2.7,3707.1,3706.7,2.84506734]
[1641036347381,2.7,3707.1,3706.7,3.14847788]
[1641036347584,2.7,3707.1,3706.9,1.1711707]
[1641036347784,2.7,3707.1,3706.9,3.75034011]
[1641036347984,2.7,3707.1,3707.0,0.00170527]
[1641036348182,2.7,3707.1,3707.0,1.00170527]
[1641036348585,2.7,3707.1,3707.0,0.00170527]
[1641036350143,2.7,3707.1,3707.0,2.54830758]
[1641036350341,2.7,3707.1,3707.0,0.00170527]
[1641036350540,2.7,3707.1,3707.0,1.00170527]
[1641036350744,2.7,3707.1,3707.0,0.00170527]
[1641036351045,2.7,3707.1,3707.0,1.00170527]
[1641036351243,2.7,3707.1,3707.0,0.00170527]
[1641036351441,2.7,3707.1,3707.0,1.00170527]
[1641036352441,2.7,3707.1,3707.0,0.00170527]
[1641036352642,2.7,3707.1,3707.0,1.00170527]
[1641036352842,2.7,3707.1,3707.0,0.00170527]
[1641036353142,2.7,3707.1,3707.0,1.00170527]
[1641036354981,2.7,3707.1,3707.0,0.00170527]
[1641036355179,2.7,3707.1,3707.0,1.00170527]
[1641036355379,2.7,3707.1,3707.0,0.00170527]
[1641036355578,2.7,3707.1,3707.0,1.00170527]
[1641036355980,2.7,3707.1,3707.0,0.00170527]
[1641036357180,2.7,3707.1,3707.0,0.04593457]
[1641036360725,2.7,3707.1,3707.0,2.57150278]
[1641036361174,2.7,3707.1,3707.0,3.57150278]
[1641036362580,2.7,3707.1,3707.0,1.04593457]
[1641036363181,2.7,3707.1,3707.0,0.04593457]
[1641036365934,2.7,3707.1,3707.0,0.04963151]
[1641036376977,2.7,3707.1,3707.0,2.62917756]
[1641036377177,2.7,3707.1,3707.0,3.631237]
[1641036377977,2.7,3707.1,3707.0,3.62953173]
[1641036378378,2.7,3707.1,3707.0,1.04792624]
[1641036378580,2.7,3707.1,3707.0,0.04792624]
[1641036379381,2.7,3707.1,3707.0,2.58662178]
[1641036379587,2.7,3707.1,3707.0,1.04792624]
[1641036380027,2.7,3707.1,3707.0,0.04792624]
[1641036381131,2.7,3707.1,3707.0,2.61621521]
[1641036381331,2.7,3707.1,3707.0,1.04792624]
[1641036381930,2.04953701,3707.1,3707.0,0.04792624]
[1641036382331,2.04953701,3707.1,3707.0,2.58354845]
[1641036382534,2.04953701,3707.1,3707.0,1.04792624]
[1641036382934,2.04953701,3707.1,3707.0,0.04792624]
[1641036383131,2.04953701,3707.1,3707.0,1.04792624]
[1641036383334,2.04953701,3707.1,3707.0,0.04792624]
[1641036383531,2.04953701,3707.1,3707.0,1.04792624]
[1641036385185,2.04953701,3707.1,3707.0,0.04792624]
[1641036385484,2.04953701,3707.1,3707.0,2.58603638]
[1641036385684,2.04953701,3707.1,3707.0,1.04792624]
[1641036386586,2.04953701,3707.1,3707.0,0.04792624]
[1641036406177,1.83392374,3707.1,3707.0,0.04792624]
[1641036438282,4.89969464,3707.1,3707.0,0.04792624]
[1641036446588,1.83392374,3707.1,3707.0,0.04792624]
[1641036447833,4.89973073,3707.1,3707.0,0.04792624]
[1641036454295,1.83392374,3707.1,3707.0,0.04792624]
[1641036459404,1.78392374,3707.1,3707.0,0.04792624]
[1641036460008,1.78392374,3707.1,3707.0,1.21278825]
[1641036463536,1.78392374,3707.1,3707.0,0.04792624]
[1641036477539,1.71205265,3707.1,3707.0,0.04792624]
[1641036485436,1.71205265,3707.1,3707.0,0.34792624]
[1641036485635,1.71205265,3707.1,3707.0,2.83992232]
[1641036486035,1.71205265,3707.1,3707.0,3.83992232]
[1641036486437,0.95763359,3707.3,3707.1,4.7]
[1641036486636,0.95763359,3707.3,3707.2,8.10678092]
[1641036486834,0.95763359,3707.3,3707.2,4.38084092]
[1641036487035,0.95763359,3707.3,3707.2,5.68084092]
[1641036487235,3.8276,3708.9,3707.5,2.0222]
[1641036487435,3.8276,3708.9,3707.3,4.7]
[1641036487436,3.8276,3708.9,3707.7,1.34808]
[1641036487635,0.06258971,3707.9,3707.8,2.95971508]
[1641036487835,0.01837114,3707.9,3707.8,2.82297227]
[1641036488035,0.02178168,3707.9,3707.8,1.3]
[1641036488237,0.02178168,3707.9,3707.8,1.59966708]
[1641036488536,0.02178168,3707.9,3707.8,4.76719948]
[1641036488787,0.02178168,3707.9,3707.8,5.0798417]
[1641036488991,0.02178168,3707.9,3707.8,3.57374708]
[1641036489190,0.00341054,3707.9,3707.8,3.57374708]
[1641036489588,0.00341054,3707.9,3707.8,2.27408]
[1641036490992,0.00341054,3707.9,3707.8,4.80381761]
[1641036491396,3.06803088,3707.9,3707.8,4.80381761]
[1641036491989,0.00341054,3707.9,3707.8,4.80381761]
[1641036492636,2.70341054,3707.9,3707.8,4.80381761]
[1641036493940,0.00341054,3707.9,3707.8,4.78945556]
[1641036494143,0.00341054,3707.9,3707.8,0.67408]
[1641036494342,0.00341054,3707.9,3707.6,0.67423]
[1641036494643,0.00284212,3707.8,3707.6,0.67423]
[1641036495046,0.0022737,3707.7,3707.3,0.0583]
[1641036495244,0.0022737,3707.7,3707.1,6.3714802]
[1641036495445,0.00170527,3707.6,3707.1,3.8749339]
[1641036495646,0.00170527,3707.6,3707.3,0.67428]
[1641036495844,0.00113685,3707.5,3707.3,0.67428]
[1641036496287,0.0022737,3707.7,3707.3,0.97428]
[1641036496485,3.06703576,3707.7,3707.3,1.67428]
[1641036496688,0.00170527,3707.6,3707.3,0.97428]
[1641036497087,0.00113685,3707.5,3707.4,0.67426]
[1641036497488,0.0022737,3707.5,3707.4,0.67426]
[1641036498388,0.0022737,3707.5,3707.4,0.00623488]
[1641036506003,0.0022737,3707.5,3707.4,1.35465488]
[1641036507639,0.0022737,3707.5,3707.4,1.65465488]
[1641036508041,0.0022737,3707.5,3707.4,2.65465488]
[1641036508240,0.0022737,3707.5,3707.4,1.65465488]
[1641036508446,0.0022737,3707.5,3707.4,2.65465488]
[1641036508846,0.0022737,3707.5,3707.4,1.35465488]
[1641036511400,0.0022737,3707.5,3707.4,1.95465488]
[1641036511603,0.0022737,3707.5,3707.4,2.65465488]
[1641036511797,0.0022737,3707.5,3707.4,2.35465488]
[1641036511998,0.0022737,3707.5,3707.4,1.35465488]
[1641036512204,0.0022737,3707.5,3707.4,2.35465488]
[1641036512798,0.0022737,3707.5,3707.4,1.35465488]
[1641036514300,3.06476206,3708.3,3707.6,0.67424]
[1641036514703,0.00284211,3708.2,3707.6,0.67424]
[1641036515142,0.00227369,3708.1,3707.6,0.67424]
[1641036515542,0.00170527,3708.0,3707.6,0.67424]
[1641036515943,0.00113684,3707.9,3707.6,0.67424]
[1641036516846,0.00113684,3707.9,3707.4,0.68221016]
[1641036517044,0.00113684,3707.9,3707.4,0.00794016]
[1641036517247,0.00113684,3707.9,3707.5,0.00113685]
[1641036518791,0.00113684,3707.9,3707.6,0.67424]
[1641036525946,0.00113684,3707.9,3707.6,0.97424]
[1641036526192,0.00113684,3707.9,3707.7,0.67421]
[1641036527995,0.00113684,3707.9,3707.6,1.6]
[1641036528194,0.00113684,3707.9,3707.7,0.67422]
[1641036535695,0.00113684,3707.9,3707.7,0.97422]
[1641036535895,0.00113684,3707.9,3707.8,1.3483]
[1641036536498,0.00113684,3707.9,3707.8,2.3483]
[1641036539943,0.00113684,3707.9,3707.8,1.3483]
[1641036540144,0.00113684,3707.9,3707.8,2.3483]
[1641036540345,0.00113684,3707.9,3707.8,1.3483]
[1641036546443,0.00113684,3707.9,3707.8,1.9483]
[1641036546843,0.00113684,3707.9,3707.8,2.9483]
[1641036549798,0.00113684,3707.9,3707.8,5.45473819]
[1641036550001,0.00113684,3707.9,3707.8,2.9483]
[1641036551201,0.00033684,3707.9,3707.8,2.9483]
[1641036552305,0.00033684,3707.9,3707.8,5.48658677]
[1641036552542,0.00033684,3707.9,3707.8,2.9483]
[1641036554344,0.00033684,3707.9,3707.8,1.3483]
[1641036554544,0.00033684,3707.9,3707.7,0.00625141]
[1641036555749,15.79,3707.8,3707.7,5.141e-05]
[1641036555950,15.86792362,3707.8,3707.7,5.141e-05]
[1641036556191,2.02415,3707.4,3705.7,4.46589382]
[1641036556391,0.01279506,3706.9,3705.7,4.46589382]
[1641036556699,1.34954,3706.4,3705.8,0.01080005]
[1641036557093,1.34954,3706.4,3705.6,0.0119369]
[1641036557492,15.79,3706.3,3705.6,0.0119369]
[1641036557694,15.79,3706.3,3705.3,0.01364217]
[1641036557695,3.06476206,3706.3,3705.3,0.01364217]
[1641036557896,1.0498188,3705.5,3705.3,0.01364217]
[1641036558295,1.0498188,3705.5,3705.1,0.01477901]
[1641036560748,1.0498188,3705.5,3705.1,0.01847768]
[1641036561145,1.0498188,3705.5,3705.2,0.01421059]